bitfinex-derivatives/quotes_ETHF0:USTF0_20250411
["timestamp","ask_amount","ask_price","bid_price","bid_amount"]
[1744347698401,0.00967773,1547.4,1547.3,1.29345]
[1744347698596,0.00967773,1547.4,1547.3,8.95975]
[1744347698801,0.00967773,1547.4,1547.3,13.95975]
[1744347699003,4.561,1547.6,1547.4,1.2933]
[1744347699202,5.8542,1547.6,1547.5,1.6743]
[1744347699405,1.2932,1547.6,1547.5,1.6743]
[1744347700205,1.2932,1547.6,1547.5,6.6743]
[1744347700399,4.51064773,1547.7,1547.5,7.96758]
[1744347700594,4.51064773,1547.7,1547.6,1.621]
[1744347703405,3.21747773,1547.7,1547.6,2.4225]
[1744347703804,4.51058773,1547.7,1547.6,2.4225]
[1744347705201,3.21747773,1547.7,1547.6,2.4225]
[1744347705399,4.51058773,1547.7,1547.6,2.4225]
[1744347706301,3.233,1547.6,1547.1,7.73e-06]
[1744347706512,1.29353,1547.2,1547.1,7.73e-06]
[1744347707708,1.29353,1547.2,1547.1,1.67610773]
[1744347708813,5.85153,1547.2,1547.1,1.67610773]
[1744347713322,1.29353,1547.2,1547.1,1.67610773]
[1744347713717,3.2078,1547.3,1547.2,1.29353]
[1744347713929,3.2078,1547.3,1547.2,2.11933]
[1744347714229,4.50125,1547.3,1547.2,0.8258]
[1744347714920,6.18315,1547.3,1547.2,0.8258]
[1744347717630,4.50125,1547.3,1547.2,0.8258]
[1744347718026,3.2078,1547.3,1547.2,2.4779]
[1744347718226,5.8514,1547.4,1547.2,3.77143]
[1744347718424,5.8514,1547.4,1547.3,1.6521]
[1744347724635,5.8514,1547.4,1547.3,2.94555]
[1744347724830,5.8514,1547.4,1547.3,1.6521]
[1744347725639,5.8514,1547.4,1547.3,2.94555]
[1744347725840,4.558,1547.4,1547.3,2.94555]
[1744347726041,1.29336,1547.4,1547.3,1.6521]
[1744347726334,2.90996,1547.4,1547.3,1.6521]
[1744347727045,4.50115,1547.5,1547.3,2.94555]
[1744347727244,5.85124,1547.6,1547.3,12.6441]
[1744347727443,5.33235773,1547.7,1547.4,3.29925457]
[1744347727735,5.33235773,1547.7,1547.5,2.88323]
[1744347727928,5.33235773,1547.7,1547.6,1.6808]
[1744347728132,6.95735773,1547.7,1547.6,1.6808]
[1744347728529,6.95735773,1547.7,1547.6,2.974]
[1744347729139,6.95735773,1547.7,1547.6,1.6808]
[1744347729942,1.2932,1547.6,1547.5,0.8454]
[1744347730142,1.29333,1547.5,1547.3,7.28539]
[1744347730343,1.29333,1547.5,1547.4,1.6808]
[1744347730642,1.29333,1547.5,1547.3,0.8316]
[1744347730643,1.29336,1547.4,1547.3,0.8316]
[1744347730844,1.29345,1547.3,1547.2,7.681]
[1744347731639,1.29345,1547.3,1547.2,8.97453]
[1744347731843,2.94603,1547.4,1547.2,9.86239263]
[1744347732045,2.94603,1547.4,1547.3,1.689]
[1744347733337,1.29345,1547.3,1547.2,5.992]
[1744347733538,3.78925,1547.3,1547.2,7.681]
[1744347734643,2.4958,1547.3,1547.2,8.97453]
[1744347735442,1.7248,1547.4,1547.3,1.29345]
[1744347735747,9.0591,1547.5,1547.3,2.93719]
[1744347736135,9.0591,1547.5,1547.4,2.4808]
[1744347736948,10.634,1547.5,1547.4,2.4808]
[1744347737850,9.3407,1547.5,1547.2,7.2855]
[1744347738043,1.2934,1547.4,1547.3,2.88265]
[1744347740749,9.3407,1547.5,1547.3,1.5892]
[1744347740949,2.97736,1547.4,1547.3,1.5892]
[1744347742751,1.684,1547.4,1547.3,2.88265]
[1744347743251,9.85095,1547.5,1547.3,2.88265]
[1744347743451,11.48405,1547.5,1547.4,1.6747]
[1744347745949,12.13045001,1547.5,1547.4,1.6747]
[1744347746148,11.48405,1547.5,1547.4,1.6747]
[1744347747042,11.48405,1547.5,1547.4,2.96806]
[1744347747248,10.69225,1547.5,1547.4,1.6747]
[1744347747459,1.29345,1547.3,1547.2,0.8309]
[1744347747955,4.50125,1547.3,1547.2,0.8892987]
[1744347748151,1.29353,1547.2,1547.1,7.73e-06]
[1744347748354,8.31233,1547.2,1547.1,7.73e-06]
[1744347748547,13.31233,1547.2,1547.1,7.73e-06]
[1744347749053,8.31233,1547.2,1547.1,7.73e-06]
[1744347751964,16.52013,1547.2,1547.1,7.73e-06]
[1744347753157,11.52013,1547.2,1547.1,7.73e-06]
[1744347753562,11.52113,1547.2,1547.1,1.72510773]
[1744347755763,5.415,1547.2,1547.1,3.01872773]
[1744347757367,0.858,1547.2,1547.1,3.01872773]
[1744347757667,5.415,1547.2,1547.1,3.01872773]
[1744347758062,4.557,1547.2,1547.1,3.01872773]
[1744347758257,4.557,1547.2,1547.1,9.01072773]
[1744347758563,4.557,1547.4,1547.3,1.29345]
[1744347758759,3.85420001,1547.6,1547.5,1.29328]
[1744347758760,8.41120001,1547.6,1547.5,1.29328]
[1744347758960,4.557,1547.6,1547.5,1.29328]
[1744347759161,12.52784498,1547.7,1547.6,1.2932]
[1744347759356,12.52784498,1547.7,1547.6,3.7696]
[1744347759558,12.52784498,1547.7,1547.6,59.63450821]
[1744347759765,6.66184498,1547.7,1547.6,59.63450821]
[1744347759970,6.66184498,1547.7,1547.6,60.11467564]
[1744347760161,5.35774498,1547.7,1547.6,60.11467564]
[1744347760869,5.35774498,1548.0,1547.9,1.29295]
[1744347761071,9.85840498,1548.0,1547.8,1.29299]
[1744347761264,5.35774498,1548.0,1547.9,1.29295]
[1744347761464,6.65065498,1548.0,1547.8,2.93709]
[1744347761764,6.65065498,1548.0,1547.9,1.6441]
[1744347762268,1.29296,1547.9,1547.7,7.28507]
[1744347762463,8.29066,1547.9,1547.7,8.92917]
[1744347762864,8.29066,1547.9,1547.7,7.6361]
[1744347762865,6.9977,1547.9,1547.7,7.6361]
[1744347763071,1.5801,1547.8,1547.7,8.92921]
[1744347765770,1.5801,1547.8,1547.7,2.93721]
[1744347766064,1.5801,1547.8,1547.7,1.6441]
[1744347766372,2.87313,1547.8,1547.7,2.93721]
[1744347766667,1.5801,1547.8,1547.7,2.93721]
[1744347767560,6.2385,1547.9,1547.8,1.29303]
[1744347767756,6.2385,1547.9,1547.8,3.02173]
[1744347769074,5.4176,1547.9,1547.8,3.02173]
[1744347771071,6.71055,1547.9,1547.8,3.02173]
[1744347771369,6.71055,1547.9,1547.8,1.7287]
[1744347772072,6.71055,1547.9,1547.8,3.02173]
[1744347772270,5.4176,1547.9,1547.8,3.02173]
[1744347773165,4.556,1547.9,1547.8,3.02173]
[1744347774571,5.84588,1548.0,1547.9,1.29295]
[1744347774876,5.84588,1548.0,1547.9,2.94585]
[1744347775066,7.53018,1548.0,1547.9,1.6529]
[1744347775460,6.2373,1548.0,1547.7,1.29308]
[1744347775677,2.9773,1547.9,1547.8,1.6529]
[1744347775985,4.8921,1547.9,1547.6,42.09318]
[1744347776268,3.79819,1547.8,1547.6,43.74608]
[1744347776885,3.79819,1547.8,1547.7,1.29311]
[1744347777073,3.79819,1547.8,1547.7,2.99301]
[1744347779077,2.5051,1547.8,1547.7,2.99301]
[1744347779277,0.8357,1547.9,1547.8,1.29303]
[1744347779473,8.34411,1548.0,1547.8,2.93323]
[1744347779979,8.34411,1548.0,1547.9,1.6402]
[1744347780275,1.29311,1547.7,1547.4,5.992]
[1744347780468,1.29311,1547.7,1547.1,25.32675271]
[1744347780469,5.372,1547.6,1547.2,8.92338]
[1744347780668,1.29345,1547.3,1547.2,5.992]
[1744347780872,1.29353,1547.2,1547.1,25.32675271]
[1744347781070,4.62833,1547.2,1547.1,25.32675271]
[1744347781370,4.62833,1547.2,1547.1,66.12675271]
[1744347782569,10.27473001,1547.2,1547.1,66.12675271]
[1744347782774,10.27473001,1547.2,1547.1,19.02955271]
[1744347783283,3.3348,1547.2,1546.9,1.29377]
[1744347783483,4.553,1547.1,1547.0,2.8629]
[1744347785280,7.51972,1547.1,1547.0,1.5692]
[1744347785881,6.2261,1547.1,1547.0,2.8629]
[1744347786783,6.2261,1547.1,1547.0,1.5692]
[1744347787178,1.2937,1547.0,1546.9,6.00167773]
[1744347787385,2.911,1547.0,1546.9,6.00167773]
[1744347788889,1.6173,1547.0,1546.9,6.00167773]
[1744347789076,1.6173,1547.0,1546.9,2.95265773]
[1744347789886,2.911,1547.0,1546.9,1.65887773]
[1744347790078,2.911,1547.0,1546.9,0.00967773]
[1744347792581,1.29423,1546.4,1546.2,16.12269799]
[1744347792887,5.84923,1546.4,1546.3,42.4698]
[1744347793385,8.28893,1546.4,1546.3,42.4698]
[1744347794991,6.9947,1546.4,1546.3,42.4698]
[1744347795888,8.2889,1546.4,1546.3,42.4698]
[1744347797588,0.00967773,1546.5,1546.4,1.2942]
[1744347797788,0.00967773,1546.5,1546.4,2.556]
[1744347798086,1.30379773,1546.5,1546.4,1.7191]
[1744347798388,1.30379773,1546.5,1546.4,42.5191]
[1744347798389,2.99649773,1546.5,1546.4,42.5191]
[1744347798588,0.00967773,1546.5,1546.4,43.8133]
[1744347799190,0.00967773,1546.5,1546.4,43.356]
[1744347799387,0.00967773,1546.5,1546.4,44.6502]
[1744347799685,1.30379773,1546.5,1546.4,43.356]
[1744347799882,2.90949773,1546.5,1546.4,43.356]
[1744347800089,2.90949773,1546.5,1546.4,42.5191]
[1744347800787,2.90949773,1546.5,1546.4,40.8]
[1744347801183,3.70679773,1546.5,1546.4,40.8]
[1744347801493,1.29428,1546.3,1546.2,0.00967773]
[1744347801685,9.05608,1546.3,1546.2,0.00967773]
[1744347801984,9.05608,1546.3,1546.2,40.80967773]
[1744347802391,9.05608,1546.3,1546.2,42.43697773]
[1744347803594,5.84828,1546.3,1546.2,42.43697773]
[1744347804592,9.05608,1546.3,1546.2,40.80967773]
[1744347804793,10.65468,1546.3,1546.2,40.80967773]
[1744347805493,10.65468,1546.3,1546.2,42.48617773]
[1744347806698,7.7618,1546.3,1546.2,42.48617773]
[1744347806997,4.51164773,1546.5,1546.3,1.29428]
[1744347807191,0.00967773,1546.5,1546.4,1.2942]
[1744347807389,1.30379773,1546.5,1546.4,2.4008]
[1744347807595,0.00967773,1546.5,1546.4,3.695]
[1744347808991,1.30379773,1546.5,1546.4,2.4008]
[1744347810597,0.00967773,1546.5,1546.4,3.695]
[1744347811796,1.30379773,1546.5,1546.4,3.695]
[1744347811997,1.30379773,1546.5,1546.4,2.4008]
[1744347813397,1.30379773,1546.5,1546.4,3.695]
[1744347813697,1.30379773,1546.5,1546.4,2.4008]
[1744347814895,1.30379773,1546.5,1546.4,3.695]
[1744347815195,1.30379773,1546.5,1546.4,2.4008]
[1744347815400,4.51159773,1546.5,1546.4,1.5682]
[1744347815696,6.90559773,1546.5,1546.4,1.5682]
[1744347817094,3.69779773,1546.5,1546.4,1.5682]
[1744347822696,1.29428,1546.3,1546.2,47.65657773]
[1744347822893,5.84828,1546.3,1546.2,48.41747773]
[1744347823098,9.05608,1546.3,1546.2,40.80967773]
[1744347823405,14.90428,1546.3,1546.2,40.80967773]
[1744347823903,14.90428,1546.3,1546.2,0.00967773]
[1744347826305,9.90528,1546.3,1546.2,0.00967773]
[1744347827104,14.90528,1546.3,1546.2,0.00967773]
[1744347827298,9.90528,1546.3,1546.2,0.00967773]
[1744347827603,14.90528,1546.3,1546.2,0.00967773]
[1744347828712,5.35028,1546.3,1546.2,0.00967773]
[1744347829005,9.90528,1546.3,1546.2,0.00967773]
[1744347829200,11.63578,1546.3,1546.2,0.00967773]
[1744347830403,9.90528,1546.3,1546.2,0.00967773]
[1744347830806,11.63578,1546.3,1546.2,0.00967773]
[1744347831007,5.84928,1546.3,1546.2,1.73057773]
[1744347832107,7.77147773,1546.5,1546.2,1.73057773]
[1744347832312,5.85779773,1546.5,1546.3,2.13213]
[1744347832605,5.85779773,1546.5,1546.4,1.6475]
[1744347833309,7.58679773,1546.5,1546.4,1.6475]
[1744347833512,5.85779773,1546.5,1546.4,1.6475]
[1744347835111,9.06559773,1546.5,1546.4,1.6475]
[1744347835409,7.55439773,1546.5,1546.4,1.6475]
[1744347835603,10.76219773,1546.5,1546.4,1.6475]
[1744347836404,1.2942,1546.4,1546.3,0.8379]
[1744347836605,1.2942,1546.4,1546.3,2.4355]
[1744347836606,2.9908,1546.4,1546.3,2.4355]
[1744347836810,2.9908,1546.4,1546.3,1.5976]
[1744347837013,2.9908,1546.4,1546.2,0.00967773]
[1744347837014,1.29428,1546.3,1546.2,0.00967773]
[1744347837311,1.29428,1546.3,1546.2,1.60727773]
[1744347837814,4.50208,1546.3,1546.2,1.60727773]
[1744347838013,6.18708,1546.3,1546.2,1.60727773]
[1744347838605,6.18708,1546.3,1546.2,0.00967773]
[1744347839308,1.29454,1546.0,1545.9,10.13069799]
[1744347839513,9.05534,1546.0,1545.9,10.12989799]
[1744347839701,14.05534,1546.0,1545.9,10.12989799]
[1744347840313,15.74034,1546.0,1545.9,8.94523799]
[1744347840614,15.74034,1546.0,1545.9,5.17720799]
[1744347840909,1.94182,1545.9,1545.8,16.05460384]
[1744347841213,3.65802,1545.9,1545.8,16.05460384]
[1744347841412,8.65802,1545.9,1545.8,12.67086384]
[1744347841612,8.65802,1545.9,1545.8,6.02328384]
[1744347841813,8.65802,1545.9,1545.8,4.88228384]
[1744347842012,8.65802,1545.9,1545.8,2.39279384]
[1744347842211,1.2947,1545.8,1545.7,22.33162683]
[1744347842417,1.29521,1545.2,1545.1,2.4853]
[1744347842607,5.84821,1545.2,1545.1,0.8544]
[1744347842806,5.84821,1545.2,1545.1,2.4853]
[1744347843111,5.84821,1545.2,1545.1,43.2853]
[1744347843704,5.84821,1545.2,1545.1,42.4309]
[1744347843910,7.53891,1545.2,1545.1,42.4309]
[1744347845617,7.53891,1545.2,1545.1,40.8]
[1744347846319,7.53891,1545.2,1545.0,43.17602154]
[1744347846320,1.29529,1545.1,1545.0,43.17602154]
[1744347846521,6.19379,1545.1,1545.0,43.17602154]
[1744347846818,11.19379,1545.1,1545.0,0.00967773]
[1744347848307,6.19379,1545.1,1545.0,0.00967773]
[1744347848508,6.84179,1545.1,1545.0,0.00967773]
[1744347848915,6.49929,1545.1,1545.0,0.00967773]
[1744347849220,6.49929,1545.1,1545.0,0.81367773]
[1744347849616,6.49929,1545.1,1545.0,2.50037773]
[1744347849812,5.85129,1545.1,1545.0,2.50037773]
[1744347851516,9.05909,1545.1,1545.0,1.69637773]
[1744347853720,4.556,1545.1,1545.0,1.69637773]
[1744347853919,4.556,1545.2,1545.0,7.99171773]
[1744347854222,1.29529,1545.1,1545.0,1.69637773]
[1744347854412,1.29529,1545.1,1545.0,5.00967773]
[1744347854613,4.50309,1545.1,1545.0,0.00967773]
[1744347855418,6.23949,1545.1,1545.0,0.00967773]
[1744347858624,4.50309,1545.1,1545.0,0.00967773]
[1744347860322,6.19869,1545.1,1545.0,0.00967773]
[1744347864122,11.19869,1545.1,1545.0,0.00967773]
[1744347864331,11.19869,1545.1,1545.0,7.73e-06]
[1744347865930,6.19869,1545.1,1545.0,7.73e-06]
[1744347870123,3.23859,1545.0,1544.4,0.8613]
[1744347870323,1.29588,1544.4,1544.3,0.8688]
[1744347870525,5.85188,1544.4,1544.3,0.8688]
[1744347870724,7.51798,1544.4,1544.3,41.6688]
[1744347871123,7.51798,1544.4,1543.8,5.992]
[1744347871124,1.2963,1543.9,1543.8,5.992]
[1744347871430,4.556,1543.9,1543.7,1.64935384]
[1744347871731,4.556,1543.9,1543.7,0.00970968]
[1744347871919,4.50418,1543.8,1543.7,0.00970968]
[1744347872122,6.07868,1543.8,1543.7,0.00970968]
[1744347872319,6.72668,1543.8,1543.7,0.00970968]
[1744347872830,5.85234,1543.9,1543.7,5.00970968]
[1744347873031,4.556,1543.9,1543.8,1.29638]
[1744347873228,4.556,1543.9,1543.8,2.479]
[1744347873535,5.8523,1543.9,1543.8,2.479]
[1744347873731,6.5003,1543.9,1543.8,2.479]
[1744347874133,6.5003,1543.9,1543.8,1.6852]
[1744347874334,8.0672,1543.9,1543.8,1.6852]
[1744347874534,5.204,1543.9,1543.8,1.6852]
[1744347875437,6.5003,1543.9,1543.8,1.6852]
[1744347875630,5.204,1543.9,1543.8,1.6852]
[1744347875934,5.206,1543.9,1543.8,1.6852]
[1744347876137,5.206,1543.9,1543.7,0.83450968]
[1744347876323,4.50418,1543.8,1543.7,0.00970968]
[1744347876527,6.91698,1543.8,1543.7,0.00970968]
[1744347879639,7.70948,1543.8,1543.7,0.00970968]
[1744347881231,4.50418,1543.8,1543.7,0.00970968]
[1744347882136,5.206,1543.9,1543.7,0.00970968]
[1744347882440,1.29638,1543.8,1543.7,1.65690968]
[1744347882640,5.206,1543.9,1543.7,1.65690968]
[1744347882940,6.50236,1543.9,1543.8,1.6176]
[1744347885035,5.206,1543.9,1543.8,1.6176]
[1744347885243,4.558,1543.9,1543.8,1.6176]
[1744347885543,4.558,1543.9,1543.8,7.91398]
[1744347886044,4.558,1543.9,1543.8,6.6176]
[1744347886944,4.558,1543.9,1543.8,7.91398]
[1744347887643,103.297,1544.0,1543.9,1.2963]
[1744347887843,103.297,1544.0,1543.9,2.9885]
[1744347888040,4.559,1544.0,1543.9,7.9885]
[1744347888341,4.559,1544.2,1544.1,1.29611]
[1744347888943,4.559,1544.2,1544.1,2.95311]
[1744347889144,4.559,1544.2,1544.1,4.62231]
[1744347889538,1.65040968,1544.5,1544.1,4.62231]
[1744347889539,0.00970968,1544.5,1544.3,1.29593]
[1744347889746,0.00970968,1544.5,1544.4,1.6692]
[1744347889747,1.30549968,1544.5,1544.4,1.6692]
[1744347889939,5.86449968,1544.5,1544.4,1.6692]
[1744347890141,6.51249968,1544.5,1544.4,1.6692]
[1744347891338,5.21670968,1544.5,1544.4,1.6692]
[1744347891847,5.21670968,1544.5,1544.4,2.96508]
[1744347892345,4.56870968,1544.5,1544.4,2.96508]
[1744347892540,4.56870968,1544.5,1544.4,7.96508]
[1744347892740,4.56870968,1544.5,1544.4,2.96508]
[1744347893147,4.56870968,1544.5,1544.4,43.76508]
[1744347894541,0.00970968,1544.5,1544.4,48.76508]
[1744347894741,4.558,1544.8,1544.7,1.29555]
[1744347894942,6.50154,1544.8,1544.6,1.29565]
[1744347895146,5.85354,1544.8,1544.7,1.6892]
[1744347895741,5.85354,1544.8,1544.5,7.7029]
[1744347895742,1.29571,1544.6,1544.5,7.7029]
[1744347896048,1.29571,1544.6,1544.5,9.4303]
[1744347896449,2.99628,1544.7,1544.5,10.72609]
[1744347896641,2.99628,1544.7,1544.6,1.7274]
[1744347896951,1.29563,1544.7,1544.6,1.7274]
[1744347897945,2.99623,1544.7,1544.6,1.7274]
[1744347898146,1.29571,1544.6,1544.5,5.992]
[1744347898444,6.21731,1544.6,1544.5,5.992]
[1744347899546,6.21731,1544.6,1544.5,7.7016]
[1744347900350,3.00951,1544.6,1544.5,7.7016]
[1744347900647,3.00951,1544.6,1544.5,1.7096]
[1744347904452,1.7138,1544.6,1544.5,1.7096]
[1744347904643,8.5642,1544.8,1544.5,3.00533]
[1744347904842,8.5642,1544.8,1544.5,4.69644]
[1744347905048,1.29566,1544.7,1544.6,1.587]
[1744347905250,2.89926,1544.7,1544.6,1.587]
[1744347905852,1.29571,1544.6,1544.5,0.8549]
[1744347906057,1.29579,1544.5,1544.4,40.80970968]
[1744347906251,1.29579,1544.5,1544.4,42.39670968]
[1744347906955,3.2078,1544.6,1544.4,42.39670968]
[1744347907252,11.46341,1544.8,1544.6,1.29569]
[1744347907456,8.25561,1544.8,1544.7,1.6649]
[1744347907751,1.29579,1544.5,1544.4,0.00970968]
[1744347908054,5.85279,1544.5,1544.4,0.00970968]
[1744347908255,5.85279,1544.5,1544.4,42.47460968]
[1744347911153,5.85279,1544.5,1544.4,40.80970968]
[1744347911950,9.09189,1544.5,1544.4,40.80970968]
[1744347912449,1.29604,1544.2,1544.1,1.6186]
[1744347912755,5.85304,1544.2,1544.1,1.6186]
[1744347913057,5.85304,1544.2,1544.1,42.4186]
[1744347913357,8.31794,1544.2,1544.1,40.8]
[1744347913558,1.29613,1544.1,1544.0,0.00970968]
[1744347913758,7.05953,1544.1,1544.0,0.00970968]
[1744347913954,12.05953,1544.1,1544.0,0.00970968]
[1744347915855,7.70753,1544.1,1544.0,0.00970968]
[1744347916655,5.5506,1544.1,1544.0,0.00970968]
[1744347916856,8.19693,1544.1,1544.0,0.00970968]
[1744347917763,13.22993406,1544.1,1544.0,0.00970968]
[1744347917963,13.22993406,1544.1,1544.0,1.73590968]
[1744347918164,16.43773406,1544.1,1544.0,0.00970968]
[1744347918567,16.43773406,1544.1,1544.0,1.73590968]
[1744347918967,16.43773406,1544.1,1544.0,0.00970968]
[1744347919157,16.43773406,1544.1,1544.0,1.73590968]
[1744347919360,16.43773406,1544.1,1544.0,0.00970968]
[1744347920967,11.40473,1544.1,1544.0,0.00970968]
[1744347921760,6.84673,1544.1,1544.0,0.00970968]
[1744347921965,11.40473,1544.1,1544.0,0.00970968]
[1744347922359,11.40473,1544.1,1544.0,1.72600968]
[1744347923169,11.40473,1544.1,1544.0,0.00970968]
[1744347930673,16.43773406,1544.1,1544.0,0.00970968]
[1744347932879,15.78973406,1544.1,1544.0,0.00970968]
[1744347933472,16.43773406,1544.1,1544.0,0.00970968]
[1744347933979,11.40473,1544.1,1544.0,0.00970968]
[1744347936883,16.40473,1544.1,1544.0,0.00970968]
[1744347937383,1.29638,1543.8,1543.7,40.8]
[1744347937583,1.29655,1543.6,1543.5,1.6007]
[1744347937782,4.50435,1543.6,1543.5,1.6007]
[1744347937978,4.50435,1543.6,1543.5,42.4007]
[1744347938171,6.22485,1543.6,1543.5,42.4007]
[1744347940787,6.22485,1543.6,1543.5,40.8]
[1744347941375,1.29663,1543.5,1543.4,0.00652638]
[1744347941579,8.42033,1543.5,1543.4,0.00652638]
[1744347941782,13.42033,1543.5,1543.4,6.38e-06]
[1744347942482,14.06833,1543.5,1543.4,6.38e-06]
[1744347943187,14.06833,1543.5,1542.7,2.4938]
[1744347943188,1.29722,1542.8,1542.7,2.4938]
[1744347943380,1.29722,1542.8,1542.7,2.89988772]
[1744347943381,4.583,1542.8,1542.7,2.89988772]
[1744347943585,1.29703,1543.1,1542.7,9.81038772]
[1744347943885,4.583,1543.1,1542.8,40.8]
[1744347944186,4.583,1543.1,1542.8,42.0973]
[1744347944389,4.59270968,1543.1,1542.8,47.0973]
[1744347944692,4.59270968,1543.1,1542.9,1.29724]
[1744347945186,4.59270968,1543.1,1542.9,6.29724]
[1744347945382,4.59270968,1543.1,1543.0,1.29718]
[1744347945690,4.59270968,1543.1,1543.0,6.29718]
[1744347946785,4.59270968,1543.1,1543.0,7.15148]
[1744347947789,0.00970968,1543.1,1543.0,7.15148]
[1744347947991,0.00970968,1543.1,1543.0,47.95148]
[1744347950783,4.584,1543.2,1543.1,1.2971]
[1744347951078,4.584,1543.4,1543.1,11.2858]
[1744347951288,4.584,1543.4,1543.3,1.29693]
[1744347951478,5.88069,1543.6,1543.3,40.8]
[1744347951682,5.88069,1543.6,1543.4,1.29681]
[1744347951891,5.89039968,1543.6,1543.5,0.7889]
[1744347952490,1.29683,1543.5,1543.3,42.10658968]
[1744347952684,1.29685,1543.4,1543.3,40.80970968]
[1744347952990,1.29682,1543.5,1543.3,42.10659968]
[1744347953585,0.648,1543.4,1543.3,42.10659968]
[1744347953785,1.29685,1543.4,1543.3,41.61400968]
[1744347954187,1.94485,1543.4,1543.3,41.61400968]
[1744347954384,3.86550968,1543.6,1543.3,41.61400968]
[1744347954582,5.22370968,1543.6,1543.3,44.82180968]
[1744347954792,6.52038968,1543.6,1543.4,1.29678]
[1744347954984,1.29676,1543.5,1543.4,1.29678]
[1744347955188,1.29676,1543.5,1543.3,46.11868968]
[1744347955492,1.29676,1543.5,1543.4,1.29685]
[1744347955689,6.52042968,1543.6,1543.4,1.29685]
[1744347956695,1.29676,1543.5,1543.3,44.82180968]
[1744347957086,1.29676,1543.5,1543.4,1.29685]
[1744347961195,6.52043968,1543.6,1543.4,1.29685]
[1744347961490,6.52043968,1543.6,1543.3,44.82180968]
[1744347961491,1.29685,1543.4,1543.3,46.11872968]
[1744347961694,1.29681,1543.5,1543.3,46.11872968]
[1744347961901,1.29681,1543.5,1543.4,1.29685]
[1744347962203,1.29685,1543.4,1543.3,44.82180968]
[1744347962497,1.29683,1543.5,1543.3,46.11873968]
[1744347963289,6.52042968,1543.6,1543.4,1.6798]
[1744347963595,1.29676,1543.5,1543.4,1.6798]
[1744347963899,1.29685,1543.4,1543.3,40.80970968]
[1744347964200,5.30905,1543.4,1543.3,40.80970968]
[1744347964695,5.30905,1543.4,1543.3,42.48950968]
[1744347965899,5.30905,1543.4,1543.3,40.80970968]
[1744347968205,5.30905,1543.4,1543.3,0.00970968]
[1744347968399,7.00735,1543.4,1543.3,0.00970968]
[1744347969102,12.00735,1543.4,1543.3,0.00970968]
[1744347969295,1.2973,1542.9,1542.7,3.3137]
[1744347969494,4.566,1542.8,1542.7,3.30058772]
[1744347969694,4.566,1542.8,1542.7,44.10058772]
[1744347970102,4.566,1542.8,1542.7,45.39801772]
[1744347971605,9.071,1543.0,1542.7,45.39801772]
[1744347971800,7.7738,1543.0,1542.9,1.29727]
[1744347972008,7.76068772,1543.0,1542.9,1.29727]
[1744347972304,4.566,1543.0,1542.9,1.29727]
[1744347972505,5.02593013,1543.1,1543.0,1.29718]
[1744347972703,6.32303013,1543.1,1542.9,1.29721]
[1744347972898,5.02593013,1543.1,1543.0,1.6822]
[1744347973106,5.02593013,1543.1,1543.0,3.81738]
[1744347974206,5.02593013,1543.1,1543.0,53.67021229]
[1744347975000,5.02593013,1543.1,1543.0,47.82518]
[1744347976107,2.5329,1543.2,1543.0,47.82518]
[1744347976500,2.5329,1543.2,1543.1,1.7057]
[1744347977198,7.03771,1543.2,1543.1,40.8]
[1744347977399,12.03771,1543.2,1543.1,40.8]
[1744347977606,7.03771,1543.2,1543.1,40.8]
[1744347980198,7.03771,1543.2,1543.1,42.4577]
[1744347982610,3.82991,1543.2,1543.1,43.7548]
[1744347982914,3.82991,1543.2,1543.1,42.4577]
[1744347983316,20.34923622,1543.4,1543.1,42.4577]
[1744347983612,1.29693,1543.3,1543.2,2.5286]
[1744347983813,4.44893,1543.3,1543.2,2.5286]
[1744347984317,4.44893,1543.3,1543.2,0.8367]
[1744347987814,9.44893,1543.3,1543.2,0.8367]
[1744347988315,4.44893,1543.3,1543.2,0.8367]
[1744347990012,9.47486013,1543.3,1543.2,0.8367]
[1744347990212,14.47486013,1543.3,1543.2,0.8367]
[1744347990811,3.2427,1543.2,1542.6,10.15489537]
[1744347991013,1.29743,1542.7,1542.6,11.86989537]
[1744347991213,5.85742,1542.8,1542.7,1.70188772]
[1744347991409,9.20992,1542.8,1542.7,1.70188772]
[1744347991811,1.29743,1542.7,1542.6,50.95489537]
[1744347992114,6.19183,1542.7,1542.6,50.95489537]
[1744347993609,6.84063,1542.7,1542.6,50.95489537]
[1744347993820,6.84063,1542.7,1542.6,40.8]
[1744347994215,6.84063,1542.7,1542.4,0.8644]
[1744347994216,1.29777,1542.3,1542.2,10.15489537]
[1744347994412,4.561,1542.3,1542.2,11.86429537]
[1744347994612,5.85877,1542.3,1542.2,11.86429537]
[1744347994819,5.85877,1542.3,1542.2,50.95489537]
[1744347995113,4.561,1542.3,1542.2,52.66429537]
[1744347995313,4.561,1542.3,1542.2,53.96215537]
[1744347995518,5.85877,1542.3,1542.2,52.66429537]
[1744347996115,4.561,1542.3,1542.2,52.66429537]
[1744347996326,5.85877,1542.3,1542.2,52.66429537]
[1744347996519,4.561,1542.3,1542.2,52.66429537]
[1744347996725,4.561,1542.3,1542.2,53.96215537]
[1744347997517,4.561,1542.3,1542.2,58.96215537]
[1744347998022,4.561,1542.4,1542.3,1.29771]
[1744347998320,4.561,1542.4,1542.3,2.99061]
[1744347998517,4.561,1542.4,1542.3,8.98261]
[1744347998723,4.561,1542.4,1542.3,13.98261]
[1744347999218,15.78323622,1542.7,1542.3,12.6849]
[1744347999516,1.29756,1542.6,1542.4,3.75917]
[1744347999716,15.78323622,1542.7,1542.5,1.6642]
[1744348000021,15.78323622,1542.7,1542.6,1.29752]
[1744348000616,15.78323622,1542.7,1542.6,6.29752]
[1744348000916,12.57543622,1542.7,1542.6,1.29752]
[1744348001222,0.00970968,1542.9,1542.8,1.29735]
[1744348001624,0.00970968,1542.9,1542.8,12.28935]